bitfinex/quotes_SOLUSD_20250413
["timestamp","ask_amount","ask_price","bid_price","bid_amount"]
[1744530207151,1.0,128.28,128.26,9.08146968]
[1744530208351,8.795,128.29,128.26,9.08146968]
[1744530208664,1.0,128.28,128.26,9.08146968]
[1744530210269,8.795,128.29,128.26,9.08146968]
[1744530210571,1.0,128.28,128.26,9.08146968]
[1744530210943,7.795,128.29,128.26,9.08146968]
[1744530211346,1.0,128.28,128.26,9.08146968]
[1744530212374,7.795,128.29,128.26,9.08146968]
[1744530212674,1.0,128.28,128.26,9.08146968]
[1744530213063,8.7954,128.28,128.26,9.08146968]
[1744530213374,7.7954,128.28,128.26,9.08146968]
[1744530213577,8.7954,128.28,128.21,6.87]
[1744530213782,1.0,128.26,128.22,9.08146968]
[1744530214079,10.08146968,128.26,128.22,9.08146968]
[1744530214278,1.0,128.25,128.22,9.08146968]
[1744530214457,1.0,128.22,128.21,0.03]
[1744530214654,7.799,128.22,128.21,0.03]
[1744530215676,8.799,128.22,128.21,0.03]
[1744530215857,7.799,128.22,128.21,0.03]
[1744530216055,8.799,128.22,128.21,0.03]
[1744530216563,7.799,128.22,128.21,0.03]
[1744530216765,8.799,128.22,128.21,0.03]
[1744530218072,1.0,128.22,128.21,0.03]
[1744530218676,7.799,128.22,128.21,0.03]
[1744530218879,8.7986,128.23,128.21,0.03]
[1744530219083,1.0,128.22,128.21,9.11146968]
[1744530219883,8.7986,128.23,128.21,0.03]
[1744530220182,1.0,128.22,128.21,0.03]
[1744530220480,8.799,128.22,128.21,0.03]
[1744530223786,1.0,128.22,128.21,0.03]
[1744530224287,1.0,128.25,128.21,9.11146968]
[1744530224458,1.0,128.25,128.22,9.08146968]
[1744530224968,8.7974,128.25,128.22,9.08146968]
[1744530225586,1.0,128.25,128.23,9.08146968]
[1744530226087,8.7972,128.25,128.23,9.08146968]
[1744530226996,8.7972,128.25,128.22,9.08146968]
[1744530227591,7.7972,128.25,128.22,9.08146968]
[1744530227789,8.7972,128.25,128.22,9.08146968]
[1744530229874,1.0,128.24,128.22,9.08146968]
[1744530230389,8.7978,128.24,128.22,9.08146968]
[1744530231294,1.0,128.24,128.22,9.08146968]
[1744530232189,8.7975,128.25,128.22,9.08146968]
[1744530232368,1.0,128.24,128.22,9.08146968]
[1744530232865,8.7975,128.25,128.22,9.08146968]
[1744530233083,1.0,128.24,128.22,9.08146968]
[1744530233594,7.7975,128.25,128.22,9.08146968]
[1744530233595,8.7975,128.25,128.22,9.08146968]
[1744530233771,1.0,128.24,128.22,9.08146968]
[1744530234178,0.14216157,128.22,128.21,0.03]
[1744530234370,1.0,128.22,128.21,0.03]
[1744530235389,8.799,128.22,128.21,0.03]
[1744530240298,1.0,128.2,128.17,0.03]
[1744530240474,1.0,128.2,128.17,9.11146968]
[1744530240677,1.0,128.19,128.17,9.11146968]
[1744530240992,1.0,128.21,128.18,9.08146968]
[1744530241187,7.799,128.22,128.19,9.08146968]
[1744530241371,1.0,128.21,128.19,9.08146968]
[1744530241572,7.799,128.22,128.19,9.08146968]
[1744530242000,1.0,128.21,128.19,9.08146968]
[1744530242390,1.0,128.21,128.18,9.08146968]
[1744530243297,8.799,128.22,128.18,9.08146968]
[1744530243500,1.0,128.21,128.18,9.08146968]
[1744530243876,8.7998,128.21,128.18,9.08146968]
[1744530244301,7.7998,128.21,128.17,9.11146968]
[1744530244676,8.7998,128.21,128.17,9.11146968]
[1744530244999,9.08146968,128.2,128.17,0.03]
[1744530245296,1.0,128.18,128.17,0.03]
[1744530246103,8.8015,128.18,128.17,0.03]
[1744530247685,44.59994168,128.18,128.17,0.0001]
[1744530247884,51.58210325,128.18,128.17,0.0001]
[1744530248599,55.39623357,128.18,128.17,0.0001]
[1744530249178,0.28432314,128.17,128.16,0.0001]
[1744530249402,10.08146968,128.17,128.16,0.0001]
[1744530249704,1.0,128.17,128.16,0.0001]
[1744530250102,8.8021,128.17,128.16,0.0001]
[1744530257803,1.0,128.2,128.16,9.08156968]
[1744530258100,1.0,128.19,128.17,9.08146968]
[1744530258275,98.97336968,128.22,128.17,9.08146968]
[1744530258477,1.0,128.19,128.17,9.08146968]
[1744530259912,106.77286968,128.22,128.17,9.08146968]
[1744530260617,1.0,128.19,128.17,9.08146968]
[1744530260909,1.0,128.19,128.16,16.88396968]
[1744530264318,12.34416,128.19,128.16,16.88396968]
[1744530264516,9.08146968,128.18,128.16,0.0001]
[1744530264719,1.0,128.17,128.16,0.0001]
[1744530269714,8.802,128.18,128.16,0.0001]
[1744530269911,1.0,128.17,128.16,0.0001]
[1744530273717,8.802,128.18,128.16,0.0001]
[1744530273922,1.0,128.17,128.16,0.0001]
[1744530275721,12.34416,128.19,128.16,9.08156968]
[1744530276028,12.34416,128.19,128.17,9.08146968]
[1744530277405,11.34416,128.19,128.17,9.08146968]
[1744530277721,11.34416,128.19,128.18,9.08146968]
[1744530278611,11.34416,128.19,128.18,16.88296968]
[1744530280621,11.34416,128.19,128.18,35.95910325]
[1744530281309,11.34416,128.19,128.18,17.30945439]
[1744530285624,11.34416,128.19,128.18,9.08146968]
[1744530289739,1.0,128.18,128.16,0.0001]
[1744530290118,20.14506,128.19,128.16,0.0001]
[1744530290316,1.0,128.18,128.16,9.08156968]
[1744530291205,20.14506,128.19,128.16,9.08156968]
[1744530296210,11.34416,128.19,128.17,9.08146968]
[1744530297233,20.14506,128.19,128.16,0.0001]
[1744530297432,20.14506,128.19,128.17,9.08146968]
[1744530299123,20.14506,128.19,128.16,9.08156968]
[1744530299725,12.34416,128.19,128.16,9.08156968]
[1744530300545,20.14506,128.19,128.16,9.08156968]
[1744530300751,20.14506,128.19,128.17,9.08146968]
[1744530301040,20.14506,128.19,128.16,9.08156968]
[1744530301939,12.34416,128.19,128.16,9.08156968]
[1744530302445,12.34416,128.19,128.16,0.0001]
[1744530302615,20.14516,128.19,128.16,9.08156968]
[1744530303939,20.14516,128.19,128.16,0.0001]
[1744530304147,19.14516,128.19,128.16,0.0001]
[1744530304350,20.14516,128.19,128.16,0.0001]
[1744530304522,20.14516,128.19,128.16,9.08156968]
[1744530305239,12.34416,128.19,128.17,9.08146968]
[1744530305547,11.34416,128.19,128.18,9.08146968]
[1744530306016,11.34416,128.19,128.18,9.36579282]
[1744530306217,1.52519703,128.19,128.18,28.15760325]
[1744530306428,0.063,128.23,128.2,0.28432314]
[1744530306639,0.063,128.23,128.22,9.08146968]
[1744530307229,0.063,128.23,128.22,16.88046968]
[1744530307428,0.063,128.23,128.22,17.16479282]
[1744530309936,0.063,128.23,128.22,35.95660325]
[1744530311635,0.063,128.25,128.24,0.28432314]
[1744530311843,0.063,128.25,128.24,28.15760325]
[1744530312255,0.063,128.25,128.24,64.48348197]
[1744530312557,0.063,128.25,128.24,28.15760325]
[1744530313132,0.063,128.25,128.24,26.24226134]
[1744530313753,0.063,128.25,128.24,70.36594006]
[1744530314056,0.063,128.28,128.24,89.86054006]
[1744530314243,0.063,128.28,128.27,9.08146968]
[1744530315136,0.063,128.28,128.27,28.15760325]
[1744530315654,0.063,128.28,128.27,34.99760325]
[1744530315855,0.063,128.29,128.28,16.87686968]
[1744530316447,0.063,128.32,128.31,26.14216157]
[1744530316645,0.063,128.32,128.31,35.08146968]
[1744530317160,0.063,128.32,128.31,54.15760325]
[1744530317358,0.063,128.32,128.31,35.50795439]
[1744530317662,0.063,128.32,128.31,54.15760325]
[1744530317861,0.063,128.32,128.31,61.95120325]
[1744530326668,0.063,128.32,128.29,7.7942]
[1744530326873,1.063,128.32,128.3,9.08146968]
[1744530327354,0.063,128.32,128.31,9.50795439]
[1744530327555,0.063,128.32,128.31,28.15760325]
[1744530327763,0.063,128.35,128.31,64.48348197]
[1744530328055,0.063,128.35,128.34,9.08146968]
[1744530328850,0.063,128.35,128.34,16.87326968]
[1744530329739,0.063,128.35,128.34,35.94940325]
[1744530332357,0.063,128.38,128.35,19.07613357]
[1744530332566,0.063,128.38,128.37,9.08146968]
[1744530333871,0.063,128.38,128.37,16.87136968]
[1744530335865,0.063,128.38,128.37,17.29785439]
[1744530336068,0.063,128.38,128.37,9.08146968]
[1744530336257,0.063,128.38,128.37,16.87136968]
[1744530340069,0.063,128.38,128.37,17.29785439]
[1744530345780,0.063,128.38,128.37,35.94750325]
[1744530354984,0.063,128.38,128.36,7.7902]
[1744530355196,0.063,128.38,128.36,16.87166968]
[1744530356786,0.063,128.38,128.37,9.08146968]
[1744530358289,0.063,128.38,128.37,16.87136968]
[1744530360602,0.063,128.38,128.34,38.55563357]
[1744530360603,0.063,128.38,128.34,0.28432314]
[1744530360798,0.063,128.38,128.33,7.7924]
[1744530360799,11.73546968,128.37,128.33,7.7924]
[1744530360997,11.73546968,128.37,128.33,16.87386968]
[1744530361308,2.654,128.37,128.33,16.87386968]
[1744530361484,11.73546968,128.37,128.33,16.87386968]
[1744530361684,10.08146968,128.36,128.31,14.6132]
[1744530361999,9.08146968,128.35,128.31,23.69466968]
[1744530362179,10.08146968,128.36,128.31,23.69466968]
[1744530362676,9.08146968,128.36,128.32,9.08146968]
[1744530363076,10.08146968,128.36,128.32,9.08146968]
[1744530363268,1.0,128.36,128.32,9.08146968]
[1744530363484,10.08146968,128.36,128.32,9.08146968]
[1744530363803,10.08146968,128.36,128.32,16.87426968]
[1744530364009,19.52576968,128.37,128.32,16.87426968]
[1744530364310,1.654,128.37,128.35,9.08146968]
[1744530365789,1.654,128.37,128.36,9.08146968]
[1744530365984,0.063,128.38,128.36,9.08146968]
[1744530366512,0.063,128.38,128.37,9.08146968]
[1744530367594,0.063,128.38,128.37,16.87136968]
[1744530367799,0.063,128.38,128.37,35.94750325]
[1744530368292,0.063,128.39,128.38,19.07613357]
[1744530368496,0.063,128.39,128.38,28.15760325]
[1744530369307,0.063,128.39,128.38,33.29761388]
[1744530369696,0.063,128.39,128.38,41.08691388]
[1744530378521,0.063,128.39,128.36,6.82]
[1744530378710,0.063,128.39,128.37,14.22148031]
[1744530379228,0.063,128.39,128.38,14.22148031]
[1744530387834,0.063,128.39,128.37,14.22148031]
[1744530388238,0.063,128.39,128.36,28.83168031]
[1744530388716,0.063,128.39,128.37,14.22148031]
[1744530390837,0.063,128.39,128.38,14.22148031]
[1744530391337,0.063,128.39,128.38,9.10718964]
[1744530392432,0.063,128.39,128.38,16.89648964]
[1744530393243,0.063,128.39,128.37,7.7897]
[1744530393433,0.063,128.39,128.38,9.10718964]
[1744530395744,0.063,128.39,128.37,9.10718964]
[1744530396243,0.063,128.39,128.38,9.10718964]
[1744530398446,0.063,128.39,128.38,16.89648964]
[1744530399446,0.063,128.39,128.38,35.97262321]
[1744530400945,0.063,128.41,128.4,45.07613357]
[1744530401250,0.063,128.41,128.4,90.61208177]
[1744530401846,0.063,128.41,128.4,54.18332321]
[1744530402644,0.063,128.41,128.4,61.97142321]
[1744530406438,0.063,128.41,128.4,98.40018177]
[1744530407531,0.063,128.42,128.4,98.40018177]
[1744530407842,0.063,128.42,128.41,15.92718964]
[1744530408755,0.063,128.42,128.41,35.00332321]
[1744530409067,0.063,128.46,128.45,46.0]
[1744530409360,0.063,128.48,128.47,0.28432314]
[1744530409544,0.063,128.48,128.47,8.06822314]
[1744530409749,0.063,128.48,128.47,17.17541278]
[1744530412366,0.063,128.48,128.47,9.10718964]
[1744530412577,0.063,128.48,128.47,42.89108964]
[1744530412753,0.063,128.48,128.47,16.89108964]
[1744530412949,0.063,128.48,128.47,61.96722321]
[1744530416172,0.752,128.52,128.49,0.14216157]
[1744530416467,0.752,128.52,128.5,9.10718964]
[1744530417049,0.752,128.52,128.49,9.10718964]
[1744530417472,9.85918964,128.53,128.48,35.68180007]
[1744530417761,9.85918964,128.52,128.47,9.10718964]
[1744530417969,0.752,128.51,128.47,9.10718964]
[1744530418646,0.752,128.52,128.5,9.10718964]
[1744530418859,0.752,128.53,128.5,9.10718964]
[1744530419064,0.752,128.52,128.5,9.10718964]
[1744530419369,0.752,128.53,128.5,9.10718964]
[1744530419667,0.752,128.52,128.49,7.7821]
[1744530419967,0.752,128.52,128.49,16.88928964]
[1744530420263,0.752,128.52,128.5,9.10718964]
[1744530420864,0.752,128.53,128.5,9.10718964]
[1744530421069,0.752,128.52,128.5,9.10718964]
[1744530422267,0.752,128.53,128.5,35.5386385]
[1744530422446,8.4605,128.54,128.51,9.10718964]
[1744530422645,0.752,128.53,128.51,9.10718964]
[1744530423366,0.752,128.53,128.49,42.88978964]
[1744530423667,9.85918964,128.53,128.49,33.7826]
[1744530423880,1.5012,128.54,128.51,9.10718964]
[1744530424172,2.2532,128.54,128.53,9.10718964]
[1744530424343,1.5012,128.54,128.52,9.10718964]
[1744530424542,2.2532,128.54,128.52,9.10718964]
[1744530424958,1.5012,128.54,128.52,16.88778964]
[1744530425146,2.2532,128.54,128.52,16.88778964]
[1744530426158,1.5012,128.54,128.52,16.88778964]
[1744530426353,2.2532,128.54,128.52,16.88778964]
[1744530426768,1.5012,128.54,128.52,16.88778964]
[1744530426969,2.2532,128.54,128.52,16.88778964]
[1744530427468,1.5012,128.54,128.52,16.88778964]
[1744530427649,2.2532,128.54,128.52,16.88778964]
[1744530428676,1.5012,128.54,128.52,16.88778964]
[1744530428877,2.2532,128.54,128.52,16.88778964]
[1744530429063,1.5012,128.54,128.52,16.88778964]
[1744530429375,1.5012,128.54,128.52,7.7806]
[1744530429756,2.2532,128.54,128.52,7.7806]
[1744530430281,2.22984,128.54,128.52,7.7806]
[1744530431363,1.47784,128.54,128.52,7.7806]
[1744530431684,2.22984,128.54,128.52,7.7806]
[1744530432693,1.47784,128.54,128.52,7.7806]
[1744530432982,2.22984,128.54,128.52,7.7806]
[1744530433182,0.752,128.54,128.53,28.18332321]
[1744530433390,0.063,128.55,128.54,45.07613357]
[1744530433561,0.063,128.55,128.54,54.18332321]
[1744530433984,0.063,128.58,128.57,45.07613357]
[1744530434159,0.063,128.58,128.57,54.18332321]
[1744530434479,0.063,128.58,128.57,35.10718964]
[1744530435582,0.063,128.58,128.57,42.88498964]
[1744530436177,0.063,128.58,128.57,61.96112321]
[1744530439460,0.063,128.6,128.58,19.07613357]
[1744530439664,0.063,128.6,128.59,28.18332321]
[1744530440886,0.063,128.6,128.59,9.10718964]
[1744530441470,0.063,128.6,128.59,16.88378964]
[1744530441886,0.063,128.6,128.59,17.31027435]
[1744530442091,0.063,128.6,128.59,16.88378964]
[1744530443186,0.063,128.6,128.59,17.31027435]
[1744530443486,0.063,128.6,128.59,9.10718964]
[1744530446595,0.063,128.6,128.57,26.0]
[1744530446798,1.6289,128.6,128.58,9.10718964]
[1744530446995,2.3809,128.6,128.58,9.10718964]
[1744530448196,2.3809,128.6,128.59,9.10718964]
[1744530449195,1.6289,128.6,128.59,9.10718964]
[1744530449595,0.063,128.6,128.59,9.10718964]
[1744530451395,0.063,128.6,128.59,16.88378964]
[1744530452715,0.815,128.6,128.59,9.10718964]
[1744530453015,0.815,128.6,128.58,9.10718964]
[1744530453399,0.815,128.6,128.59,9.10718964]
[1744530453597,0.063,128.6,128.59,9.10718964]
[1744530454502,0.063,128.6,128.59,16.88378964]
[1744530454893,0.063,128.6,128.59,35.95992321]
[1744530455488,6.8678,128.65,128.59,55.40152321]
[1744530455701,0.063,128.65,128.64,9.10718964]
[1744530457395,0.063,128.65,128.64,14.17068085]
[1744530457800,0.752,128.64,128.63,14.17068085]
[1744530458107,0.815,128.65,128.63,14.17068085]
[1744530458307,0.815,128.65,128.64,14.17068085]
[1744530458308,0.063,128.65,128.64,14.17068085]
[1744530459787,0.815,128.65,128.64,14.17068085]
[1744530460513,0.752,128.64,128.63,14.17068085]
[1744530460810,0.752,128.63,128.61,14.17068085]
[1744530461107,0.752,128.63,128.62,14.17068085]
[1744530462202,0.752,128.63,128.61,14.17068085]
[1744530463208,0.752,128.64,128.61,14.17068085]
[1744530463406,0.752,128.64,128.62,14.17068085]
[1744530464109,0.752,128.64,128.63,14.17068085]
[1744530464415,0.752,128.63,128.62,14.17068085]
[1744530464616,0.752,128.64,128.62,14.17068085]
[1744530464996,0.063,128.65,128.63,14.17068085]
[1744530464997,0.815,128.65,128.63,14.17068085]
[1744530465805,0.815,128.65,128.62,7.7746]
[1744530465806,0.815,128.65,128.64,14.17068085]
[1744530466008,0.063,128.65,128.63,14.17068085]
[1744530466208,0.063,128.65,128.64,14.17068085]
[1744530466723,0.815,128.65,128.63,14.17068085]
[1744530467226,0.752,128.64,128.63,14.17068085]
[1744530470934,0.815,128.65,128.63,14.17068085]
[1744530471231,0.752,128.64,128.63,14.17068085]
[1744530472107,0.063,128.65,128.63,14.17068085]
[1744530472108,0.815,128.65,128.63,14.17068085]
[1744530472405,0.752,128.64,128.63,14.17068085]
[1744530472653,0.815,128.65,128.63,14.17068085]
[1744530472925,0.752,128.64,128.63,14.17068085]
[1744530474631,0.752,128.64,128.63,21.94488085]
[1744530474836,0.815,128.65,128.63,21.94488085]
[1744530475038,0.815,128.65,128.64,14.17068085]
[1744530476438,0.063,128.65,128.64,14.17068085]
[1744530476738,0.815,128.65,128.64,14.17068085]
[1744530477726,0.063,128.65,128.64,55.19109527]
[1744530478339,0.063,128.65,128.64,41.02041442]
[1744530478926,0.063,128.65,128.64,21.94428085]
[1744530479125,0.063,128.65,128.64,14.17068085]
[1744530479325,0.063,128.65,128.64,9.06843734]
[1744530480440,0.815,128.65,128.64,9.06843734]
[1744530481027,0.815,128.65,128.63,9.06843734]
[1744530481245,0.815,128.65,128.64,9.06843734]
[1744530481626,0.063,128.65,128.64,9.06843734]
[1744530482339,0.815,128.65,128.64,9.06843734]
[1744530482641,0.063,128.65,128.64,16.84203734]
[1744530482822,0.063,128.65,128.64,9.06843734]
[1744530483344,0.063,128.65,128.64,9.49492205]
[1744530484055,0.063,128.65,128.64,17.26852205]
[1744530488242,0.063,128.65,128.64,9.06843734]
[1744530490062,0.063,128.65,128.64,16.84203734]
[1744530492568,0.063,128.65,128.64,9.06843734]
[1744530494761,0.063,128.65,128.64,26.0]
[1744530495064,0.063,128.65,128.64,35.06843734]
[1744530497144,0.063,128.65,128.64,42.84203734]
[1744530499997,0.063,128.65,128.64,35.06843734]
[1744530502704,0.063,128.65,128.64,42.84203734]
[1744530505306,0.063,128.65,128.64,35.06843734]
[1744530506392,0.063,128.65,128.64,26.0]
[1744530506578,0.063,128.65,128.64,35.06843734]
[1744530508393,0.063,128.65,128.64,26.0]
[1744530508599,0.752,128.62,128.58,7.7772]
[1744530508888,0.752,128.58,128.57,12.14575191]
[1744530512604,0.752,128.58,128.55,9.06843734]
[1744530513102,0.752,128.57,128.55,9.06843734]
[1744530513597,0.752,128.58,128.55,9.06843734]
[1744530513803,0.752,128.57,128.55,9.06843734]
[1744530514609,0.752,128.55,128.54,0.063]
[1744530515208,0.752,128.55,128.54,9.13143734]
[1744530517099,0.752,128.56,128.54,16.91103734]
[1744530517288,1.6024,128.6,128.55,9.06843734]
[1744530517289,0.752,128.57,128.55,9.06843734]
[1744530517486,0.752,128.56,128.55,9.06843734]
[1744530518908,0.752,128.57,128.55,9.06843734]
[1744530519095,0.752,128.56,128.55,9.06843734]
[1744530519690,0.752,128.56,128.54,9.13143734]
[1744530519891,0.752,128.55,128.54,9.13143734]
[1744530522025,0.752,128.56,128.54,16.91093734]
[1744530522189,0.752,128.56,128.55,9.06843734]
[1744530523992,0.752,128.55,128.54,9.13143734]
[1744530524193,0.752,128.55,128.54,0.063]
[1744530524419,2.4016,128.55,128.54,0.063]
[1744530525087,11.47003734,128.55,128.54,0.063]
[1744530525810,19.24903734,128.55,128.54,0.063]
[1744530531214,19.24903734,128.55,128.52,0.063]
[1744530531215,0.752,128.53,128.52,0.063]
[1744530531394,28.89657091,128.53,128.52,0.063]
[1744530531590,7.0248,128.52,128.51,0.063]
[1744530531790,16.09323734,128.52,128.51,0.063]
[1744530532323,23.87403734,128.52,128.51,0.063]
[1744530534498,0.752,128.52,128.51,0.063]
[1744530534898,0.752,128.52,128.51,9.13143734]
[1744530535722,0.752,128.52,128.51,0.063]
[1744530536108,0.752,128.52,128.51,9.13143734]
[1744530537421,0.752,128.54,128.51,9.13143734]
[1744530537616,0.752,128.54,128.53,9.06843734]
[1744530538124,0.752,128.55,128.53,9.06843734]
[1744530538324,0.752,128.55,128.54,9.06843734]
[1744530540431,0.752,128.57,128.54,16.84803734]
[1744530540729,0.752,128.57,128.56,9.06843734]
[1744530542726,0.752,128.56,128.55,9.06843734]
[1744530542922,0.752,128.56,128.53,9.06843734]
[1744530543233,0.752,128.55,128.53,9.06843734]
[1744530543530,0.752,128.55,128.54,9.06843734]
[1744530547744,0.752,128.54,128.53,9.06843734]
[1744530549140,0.752,128.52,128.51,0.063]
[1744530549827,8.5328,128.52,128.51,0.063]
[1744530550033,17.60123734,128.52,128.51,0.063]
[1744530551326,22.74606412,128.52,128.51,0.063]
[1744530551934,8.5328,128.52,128.51,0.063]
[1744530552239,0.752,128.52,128.51,0.063]
[1744530553348,0.752,128.53,128.51,22.05756412]
[1744530553532,0.752,128.53,128.52,14.21326412]
[1744530553730,0.752,128.54,128.52,14.21326412]
[1744530554040,0.752,128.56,128.53,14.21326412]
[1744530554224,0.752,128.56,128.55,14.21326412]
[1744530555551,0.752,128.57,128.55,21.99216412]
[1744530555749,0.752,128.57,128.56,14.21326412]
[1744530556549,0.752,128.57,128.55,14.21326412]
[1744530557157,0.752,128.58,128.56,14.21326412]
[1744530557444,0.752,128.58,128.55,7.7789]
[1744530557445,0.752,128.58,128.57,14.21326412]
[1744530557850,0.752,128.57,128.56,14.21326412]
[1744530558026,0.752,128.57,128.55,14.21326412]
[1744530558226,0.752,128.56,128.55,14.21326412]
[1744530559065,0.752,128.57,128.55,14.21326412]
[1744530559557,0.752,128.56,128.54,7.7794]
[1744530559762,0.752,128.56,128.55,14.21326412]
[1744530559934,0.752,128.57,128.55,14.21326412]
[1744530560134,0.752,128.56,128.55,14.21326412]
[1744530562252,0.752,128.57,128.55,14.21326412]
[1744530562455,0.752,128.56,128.55,14.21326412]
[1744530562662,0.752,128.56,128.53,14.21326412]
[1744530562961,0.752,128.54,128.52,14.21326412]
[1744530563164,0.752,128.55,128.52,14.21326412]
[1744530563341,14.21326412,128.57,128.52,14.21326412]
[1744530563342,0.752,128.54,128.52,14.21326412]
[1744530563752,0.752,128.54,128.52,21.99406412]
[1744530564053,0.752,128.55,128.53,14.21326412]
[1744530564265,0.752,128.56,128.54,14.21326412]
[1744530564454,0.752,128.56,128.55,14.21326412]
[1744530567567,0.752,128.56,128.54,14.21326412]
[1744530567967,0.752,128.55,128.54,14.21326412]
[1744530568956,0.752,128.55,128.53,14.21326412]
[1744530570285,0.752,128.54,128.53,21.99336412]
[1744530570467,0.752,128.55,128.53,21.99336412]
[1744530570770,0.752,128.54,128.53,21.99336412]
[1744530571152,0.752,128.55,128.53,21.99336412]
[1744530571552,0.752,128.54,128.53,21.99336412]
[1744530573382,0.752,128.54,128.53,16.86394957]
[1744530574073,0.752,128.54,128.53,9.08384957]
[1744530574480,0.752,128.53,128.52,16.86454957]
[1744530576183,0.752,128.53,128.51,16.92804957]
[1744530576371,0.752,128.53,128.51,9.14684957]
[1744530576557,0.752,128.52,128.51,0.063]
[1744530576961,0.752,128.52,128.51,9.14684957]
[1744530577373,0.752,128.52,128.51,0.063]
[1744530577983,8.5328,128.52,128.51,0.063]
[1744530578189,19.22004957,128.52,128.51,0.063]
[1744530579367,0.752,128.52,128.51,0.063]
[1744530579674,81.0,128.56,128.51,0.063]
[1744530579675,0.063,128.65,128.64,2.0117]
[1744530579869,24.06406849,128.73,128.64,2.0117]
[1744530579870,12.03203424,128.68,128.67,27.0]
[1744530580178,12.03203424,128.68,128.67,1.0]
[1744530580378,12.03203424,128.68,128.67,15.20823785]
[1744530581278,12.03203424,128.68,128.67,50.08209668]
[1744530581487,12.03203424,128.68,128.67,57.85389668]
[1744530581674,7.18,128.74,128.68,19.07613357]
[1744530581868,7.18,128.74,128.71,23.65561197]
[1744530582178,22.65561197,128.78,128.73,22.65561197]
[1744530582385,7.18,128.76,128.73,23.65561197]
[1744530583165,7.18,128.76,128.73,1.0]
[1744530583369,7.18,128.76,128.67,1.0]
[1744530583589,48.65561197,128.73,128.68,23.65561197]
[1744530583790,26.0,128.73,128.69,22.65561197]
[1744530583993,22.65561197,128.72,128.68,1.0]
[1744530584289,26.0,128.73,128.68,1.0]
[1744530584290,7.18,128.71,128.68,23.65561197]
[1744530584980,7.18,128.71,128.68,8.771]
[1744530586091,7.18,128.71,128.68,31.42661197]
[1744530586693,7.18,128.71,128.68,30.42661197]
[1744530586989,7.18,128.73,128.7,23.65561197]
[1744530587191,7.18,128.73,128.71,22.65561197]
[1744530587391,7.18,128.73,128.71,23.65561197]
[1744530587591,7.18,128.73,128.72,23.65561197]
[1744530587794,7.18,128.73,128.72,1.0]
[1744530587977,7.18,128.73,128.72,23.65561197]
[1744530588384,0.03,128.74,128.73,1.0]
[1744530588979,0.03,128.74,128.73,31.42371197]
[1744530594810,0.03,128.74,128.73,8.7681]
[1744530594985,0.03,128.74,128.73,31.42371197]
[1744530597503,0.03,128.74,128.73,50.49984554]
[1744530598288,7.21,128.8,128.79,1.0]
[1744530599405,7.21,128.8,128.79,8.7645]
[1744530600195,7.21,128.8,128.79,1.0]
[1744530600400,29.86561197,128.8,128.78,1.0]
[1744530600793,7.21,128.8,128.78,1.0]
[1744530601304,7.21,128.8,128.78,22.65561197]
[1744530601483,7.21,128.8,128.78,23.65561197]
[1744530602101,7.21,128.8,128.78,22.65561197]
[1744530602308,7.21,128.8,128.78,8.7649]
[1744530603184,7.21,128.8,128.78,31.42051197]
[1744530603384,7.21,128.8,128.78,30.42051197]
[1744530603580,7.21,128.8,128.78,31.42051197]
[1744530604187,0.03,128.8,128.79,1.0]
[1744530604696,0.03,128.8,128.79,23.65561197]
[1744530605003,0.03,128.8,128.79,1.0]